fUST/lending_fUST_20251203
["ID","MTS","AMOUNT","RATE_DAILY","PERIOD"]
[395444665,1764691851134,-2000.0,0.00019609,7]
[395444667,1764691851144,-302.8183302,0.00019656,2]
[395444670,1764691851154,-800.0,0.00019699,2]
[395444672,1764691851163,-800.0,0.00019701,2]
[395444674,1764691851173,-800.0,0.00019708,2]
[395444676,1764691851184,-5000.0,0.00019722,2]
[395444678,1764691851194,-800.0,0.00019724,2]
[395444680,1764691851204,-1260.0,0.00019726,2]
[395444682,1764691851214,-250.0,0.00019726,2]
[395444684,1764691851224,-700.0071299,0.00019726,2]
[395444686,1764691851233,-500.0,0.00019726,2]
[395444688,1764691851243,-1143.140896,0.0001976,5]
[395444690,1764691851252,-800.0,0.00019777,2]
[395444692,1764691851261,-1000.0,0.0001978,5]
[395444694,1764691851271,-800.0,0.00019797,2]
[395444696,1764691851282,-1000.0,0.000198,5]
[395444698,1764691851291,-529.959063,0.000198,2]
[395444700,1764691851301,-529.959063,0.000198,2]
[395444702,1764691851311,-529.959063,0.000198,2]
[395444704,1764691851321,-529.959063,0.000198,2]
[395444706,1764691851331,-9151.30319114,0.000198,2]
[395444708,1764691851347,-151.0,0.000198,2]
[395444710,1764691851358,-150.0,0.000198,3]
[395444712,1764691851367,-800.0,0.00019812,2]
[395444714,1764691851378,-1000.0,0.0001982,5]
[395444716,1764691851388,-800.0,0.00019821,2]
[395444718,1764691851398,-800.0,0.00019822,2]
[395444720,1764691851408,-800.0,0.00019833,2]
[395444722,1764691851417,-800.0,0.00019835,2]
[395444725,1764691851429,-151.0,0.00019835,2]
[395444726,1764691851438,-151.0,0.00019835,2]
[395444729,1764691851448,-2030.851019,0.00019835,2]
[395444731,1764691851458,-2030.851019,0.00019835,2]
[395444733,1764691851467,-178.889848,0.00019835,2]
[395444735,1764691851477,-2030.851019,0.00019835,2]
[395444737,1764691851487,-178.889848,0.00019835,2]
[395444739,1764691851499,-2030.851019,0.00019835,2]
[395444741,1764691851510,-178.889848,0.00019835,2]
[395444743,1764691851519,-178.889848,0.00019835,2]
[395444745,1764691851529,-1000.0,0.0001984,5]
[395444747,1764691851539,-454.2274953,0.00019845,4]
[395444749,1764691851549,-800.0,0.00019856,2]
[395444752,1764691851560,-1000.0,0.0001986,5]
[395444754,1764691851570,-802.40921481,0.0001987,2]
[395444756,1764691851580,-1000.0,0.0001988,5]
[395444758,1764691851591,-800.0,0.00019885,2]
[395444760,1764691851601,-500.0,0.00019899,2]
[395444762,1764691851610,-500.0,0.00019899,2]
[395444763,1764691851620,-500.0,0.00019899,2]
[395444766,1764691851631,-500.0,0.00019899,2]
[395444768,1764691851640,-500.0,0.00019899,2]
[395444770,1764691851650,-500.0,0.00019899,2]
[395444772,1764691851660,-500.0,0.00019899,2]
[395444773,1764691851669,-500.0,0.00019899,2]
[395444776,1764691851679,-500.0,0.00019899,2]
[395444778,1764691851688,-500.0,0.00019899,2]
[395444779,1764691851698,-500.0,0.00019899,2]
[395444782,1764691851708,-500.0,0.00019899,2]
[395444783,1764691851717,-500.0,0.00019899,2]
[395444785,1764691851726,-500.0,0.00019899,2]
[395444787,1764691851736,-500.0,0.00019899,2]
[395444789,1764691851745,-500.0,0.00019899,2]
[395444791,1764691851755,-500.0,0.00019899,2]
[395444794,1764691851764,-500.0,0.00019899,2]
[395444796,1764691851774,-500.0,0.00019899,2]
[395444798,1764691851784,-500.0,0.00019899,2]
[395444800,1764691851793,-418.2339671,0.00019899,2]
[395444802,1764691851802,-151.0,0.00019899,2]
[395444804,1764691851812,-151.0,0.00019899,2]
[395444806,1764691851821,-151.0,0.00019899,2]
[395444808,1764691851831,-1000.0,0.000199,5]
[395444810,1764691851842,-800.0,0.00019903,2]
[395444812,1764691851852,-800.0,0.00019905,2]
[395444814,1764691851862,-800.0,0.00019909,2]
[395444816,1764691851872,-527.58989134,0.00019909,2]
[395444818,1764691851882,-509.09,0.0001991,7]
[395444819,1764691851891,-800.0,0.00019913,2]
[395444821,1764691851901,-800.0,0.00019915,2]
[395444823,1764691851910,-800.0,0.00019916,2]
[395444825,1764691851919,-1000.0,0.0001992,5]
[395444827,1764691851929,-1101.684517,0.0001994,5]
[395444830,1764691851938,-1000.0,0.0001994,5]
[395444832,1764691851949,-800.0,0.00019943,2]
[395444834,1764691851958,-280.03725112,0.00019947,2]
[395444836,1764691851968,-1000.0,0.0001996,5]
[395444838,1764691851978,-1000.0,0.0001996,5]
[395444840,1764691851988,-800.0,0.00019967,2]
[395444842,1764691851999,-800.0,0.00019975,2]
[395444844,1764691852008,-1000.0,0.0001998,5]
[395444846,1764691852020,-1000.0,0.0001998,5]
[395444848,1764691852030,-887.0,0.0002,2]
[395444850,1764691852040,-150.0,0.0002,2]
[395444852,1764691852050,-2656.0,0.0002,2]
[395444854,1764691852060,-783.0,0.0002,2]
[395444856,1764691852070,-11695.31395847,0.0002,2]
[395444858,1764691852079,-14633.87790754,0.0002,2]
[395444860,1764691852089,-369.91466266,0.0002,2]
[395444863,1764691852098,-389.8137756,0.0002,2]
[395444865,1764691852108,-23000.0,0.0002,2]
[395444866,1764691852119,-201.77856368,0.0002,2]
[395444869,1764691852129,-502.0468332,0.0002,2]
[395444871,1764691852139,-20473.504462,0.0002,2]
[395444873,1764691852150,-154.41350667,0.0002,2]
[395444874,1764691852160,-5000.0,0.0002,2]
[395444877,1764691852169,-80474.13187021,0.0002,2]
[395444879,1764691852179,-1605.53,0.0002,2]
[395444881,1764691852190,-194.91669246,0.0002,24]
[395444883,1764691852199,-20379.0,0.0002,7]
[395444885,1764691852209,-252.19804441,0.0002,21]
[395444887,1764691852219,-289.53626113,0.0002,14]
[395444889,1764691852228,-204.37764711,0.0002,2]
[395444891,1764691852237,-2000.0,0.0002,2]
[395444893,1764691852247,-500.0,0.0002,7]
[395444895,1764691852258,-333.0,0.0002,2]
[395444897,1764691852267,-344.98893742,0.0002,2]
[395444899,1764691852277,-151.4394318,0.0002,2]
[395444901,1764691852287,-1000.0,0.0002,5]
[395444903,1764691852296,-1000.0,0.0002,5]
[395444905,1764691852305,-250.0,0.0002,10]
[395444907,1764691852315,-532.987456,0.0002,2]
[395444909,1764691852324,-532.987456,0.0002,2]
[395444911,1764691852333,-532.987456,0.0002,2]
[395444913,1764691852347,-532.987456,0.0002,2]
[395444915,1764691852356,-300.0,0.0002,2]
[395444917,1764691852366,-150.0,0.0002,2]
[395444919,1764691852375,-529.959063,0.0002,2]
[395444921,1764691852384,-529.959063,0.0002,2]
[395444923,1764691852394,-529.959063,0.0002,2]
[395444925,1764691852404,-529.959063,0.0002,2]
[395444928,1764691852413,-151.0,0.0002,2]
[395444930,1764691852427,-151.0,0.0002,2]
[395444931,1764691852437,-771.0,0.0002,2]
[395444934,1764691852447,-1521.97080546,0.0002,2]
[395444935,1764691852456,-2030.851019,0.0002,2]
[395444938,1764691852466,-2030.851019,0.0002,2]
[395444940,1764691852475,-178.889848,0.0002,2]
[395444942,1764691852485,-2030.851019,0.0002,2]
[395444944,1764691852495,-178.889848,0.0002,2]
[395444946,1764691852504,-2030.851019,0.0002,2]
[395444948,1764691852513,-178.889848,0.0002,2]
[395444950,1764691852523,-178.889848,0.0002,2]
[395444952,1764691852532,-151.0,0.0002,2]
[395444954,1764691852541,-151.0,0.0002,2]
[395444956,1764691852550,-1000.0,0.0002,2]
[395444958,1764691852559,-151.0,0.0002,2]
[395444960,1764691852569,-151.0,0.0002,2]
[395444962,1764691852579,-490.04592384,0.00020034,4]
[395444964,1764691852588,-650.84098072,0.00020097,2]
[395444966,1764691852597,-500.0,0.000201,2]
[395444968,1764691852607,-500.0,0.000201,2]
[395444970,1764691852617,-362.83,0.000201,7]
[395444972,1764691852626,-366.24,0.000201,2]
[395444974,1764691852635,-3808.79,0.000201,2]
[395444976,1764691852645,-448.32,0.000201,7]
[395444978,1764691852654,-1050.40046118,0.000201,2]
[395444980,1764691852664,-236.12143114,0.000201,2]
[395444982,1764691852673,-257.60144184,0.000201,2]
[395444984,1764691852683,-250.0,0.000201,10]
[395444986,1764691852692,-232.09197705,0.00020128,2]
[395444988,1764691852701,-1500.0,0.00020187,2]
[395444989,1764691852711,-250.0,0.000202,10]
[395444991,1764691852721,-1050.40046118,0.00020206,5]
[395444993,1764691852730,-350.0,0.00020274,2]
[395444996,1764691852739,-500.0,0.00020274,2]
[395444998,1764691852749,-1360.0,0.00020274,2]
[395444999,1764691852758,-250.0,0.000203,10]
[395445002,1764691852767,-2000.0,0.00020302,7]
[395445003,1764691852777,-1050.40046118,0.00020312,9]
[395445005,1764691852787,-236.12143114,0.00020325,9]
[395445008,1764691852797,-170.0,0.00020326,120]
[395445009,1764691852806,-3740.71162587,0.00020348,2]
[395445011,1764691852816,-175.0,0.00020349,120]
[395445013,1764691852825,-176.0,0.00020349,120]
[395445015,1764691852834,-250.0,0.000204,10]
[395445017,1764691852846,-179.0,0.000204,120]
[395445019,1764691852855,-167.0,0.000204,120]
[395445021,1764691852865,-168.0,0.000204,120]
[395445023,1764691852874,-1050.40046118,0.00020418,13]
[395445025,1764691852884,-233.0,0.00020451,120]
[395445028,1764691852894,-389.0,0.00020451,120]
[395445030,1764691852904,-167.0,0.00020467,120]
[395445032,1764691852913,-180.0,0.00020487,120]
[395445034,1764691852924,-290.39862941,0.00020495,2]
[395445036,1764691852933,-250.0,0.000205,10]
[395445038,1764691852943,-178.0,0.00020502,120]
[395445055,1764691852954,-1050.40046118,0.00020523,16]
[395445057,1764691853118,-1300.0,0.00020548,7]
[395445059,1764691853128,-236.12143114,0.00020551,17]
[395445061,1764691853137,-5000.0,0.00020589,2]
[395445062,1764691853147,-250.0,0.000206,10]
[395445063,1764691853156,-837.37674958,0.00020608,3]
[395445064,1764691853166,-948.12825506,0.00020608,3]
[395445065,1764691853175,-1050.40046118,0.00020629,20]
[395445066,1764691853184,-232.09197705,0.00020652,2]
[395445067,1764691853193,-250.0,0.000207,10]
[395445068,1764691853202,-1050.40046118,0.00020735,24]
[395445069,1764691853211,-236.12143114,0.00020776,25]
[395445070,1764691853220,-1605.53,0.000208,2]
[395445071,1764691853230,-250.0,0.000208,10]
[395445072,1764691853240,-450.0,0.00020822,2]
[395445073,1764691853249,-500.0,0.00020822,2]
[395445074,1764691853259,-1460.0,0.00020822,2]
[395445075,1764691853268,-1050.40046118,0.00020841,28]
[395445077,1764691853278,-250.0,0.000209,10]
[395445078,1764691853288,-1050.40046118,0.00020947,31]
[395445080,1764691853298,-2000.0,0.00020995,7]
[395445082,1764691853308,-2343.75,0.00021,120]
[395445084,1764691853317,-3808.79,0.00021,2]
[395445086,1764691853326,-5706.24097666,0.00021,5]
[395445088,1764691853336,-1172.299999,0.00021,2]
[395445090,1764691853351,-3000.0,0.00021,2]
[395445092,1764691853361,-250.0,0.00021,10]
[395445094,1764691853370,-150.0,0.00021,2]
[395445096,1764691853381,-236.12143114,0.00021002,32]
[395445098,1764691853391,-3000.0,0.0002101,2]
[395445100,1764691853400,-3000.0,0.0002102,2]
[395445102,1764691853409,-3000.0,0.0002103,2]
[395445104,1764691853419,-3000.0,0.0002104,2]
[395445106,1764691853431,-301.1433787,0.00021043,2]
[395445108,1764691853441,-3000.0,0.0002105,2]
[395445110,1764691853451,-1050.40046118,0.00021053,35]
[395445112,1764691853461,-3000.0,0.0002106,2]
[395445114,1764691853472,-3000.0,0.0002107,2]
[395445116,1764691853482,-3000.0,0.0002108,2]
[395445117,1764691853492,-3000.0,0.0002109,2]
[395445119,1764691853502,-3000.0,0.000211,2]
[395445122,1764691853512,-250.0,0.000211,10]
[395445123,1764691853522,-3000.0,0.0002111,2]
[395445125,1764691853532,-3000.0,0.0002112,2]
[395445127,1764691853542,-167.46529792,0.00021123,38]
[395445129,1764691853553,-3000.0,0.0002113,2]
[395445131,1764691853562,-532.987456,0.0002113,2]
[395445133,1764691853572,-532.987456,0.0002113,2]
[395445135,1764691853582,-532.987456,0.0002113,2]
[395445138,1764691853592,-532.98746,0.0002113,2]
[395445139,1764691853602,-3000.0,0.0002114,2]
[395445142,1764691853612,-3000.0,0.0002115,2]
[395445144,1764691853622,-151.0,0.0002115,2]
[395445145,1764691853632,-2030.851019,0.0002115,2]
[395445147,1764691853641,-2030.851019,0.0002115,2]
[395445149,1764691853651,-178.889848,0.0002115,2]
[395445152,1764691853661,-2030.851019,0.0002115,2]
[395445154,1764691853671,-178.889848,0.0002115,2]
[395445156,1764691853680,-178.889848,0.0002115,2]
[395445158,1764691853690,-2030.851023,0.0002115,2]
[395445160,1764691853700,-178.889853,0.0002115,2]
[395445161,1764691853709,-1050.40046118,0.00021159,39]
[395445163,1764691853719,-151.0,0.00021159,2]
[395445166,1764691853729,-3000.0,0.0002116,2]
[395445168,1764691853739,-3000.0,0.0002117,2]
[395445170,1764691853749,-529.959063,0.00021177,2]
[395445172,1764691853758,-529.959063,0.00021177,2]
[395445174,1764691853768,-529.959063,0.00021177,2]
[395445176,1764691853778,-529.95907,0.00021177,2]
[395445178,1764691853787,-232.09197705,0.00021177,2]
[395445180,1764691853797,-3000.0,0.0002118,2]
[395445182,1764691853807,-3000.0,0.0002119,2]
[395445184,1764691853817,-3000.0,0.000212,2]
[395445186,1764691853827,-3000.0,0.0002121,2]
[395445188,1764691853838,-3000.0,0.0002122,2]
[395445190,1764691853848,-236.12143114,0.00021227,40]
[395445192,1764691853858,-3000.0,0.0002123,2]
[395445194,1764691853868,-3000.0,0.0002124,2]
[395445196,1764691853879,-3000.0,0.0002125,2]
[395445197,1764691853889,-3000.0,0.0002126,2]
[395445199,1764691853899,-1050.40046118,0.00021265,42]
[395445201,1764691853909,-3000.0,0.0002127,2]
[395445203,1764691853919,-3000.0,0.0002128,2]
[395445205,1764691853929,-3000.0,0.0002129,2]
[395445208,1764691853941,-3000.0,0.000213,2]
[395445209,1764691853951,-3000.0,0.0002131,2]
[395445211,1764691853962,-3000.0,0.0002132,2]
[395445214,1764691853971,-3000.0,0.0002133,2]
[395445215,1764691853981,-3000.0,0.0002134,2]
[395445218,1764691853991,-170.0,0.00021342,120]
[395445219,1764691854001,-3000.0,0.0002135,2]
[395445221,1764691854012,-3000.0,0.0002136,2]
[395445224,1764691854023,-175.0,0.00021366,120]
[395445226,1764691854033,-176.0,0.00021366,120]
[395445228,1764691854043,-550.0,0.0002137,2]
[395445230,1764691854053,-358.32,0.0002137,2]
[395445232,1764691854064,-3000.0,0.0002137,2]
[395445234,1764691854075,-1560.0,0.0002137,2]
[395445236,1764691854086,-1050.40046118,0.0002137,46]
[395445238,1764691854098,-3000.0,0.0002138,2]
[395445240,1764691854109,-3000.0,0.0002139,2]
[395445242,1764691854119,-3300.57,0.000214,2]
[395445244,1764691854129,-3000.0,0.000214,2]
[395445246,1764691854141,-3000.0,0.0002141,2]
[395445248,1764691854151,-3000.0,0.0002142,2]
[395445250,1764691854162,-179.0,0.0002142,120]
[395445252,1764691854171,-167.0,0.0002142,120]
[395445254,1764691854181,-3000.0,0.0002143,2]
[395445256,1764691854190,-3029.614,0.0002144,2]
[395445258,1764691854201,-236.12143114,0.00021453,48]
[395445260,1764691854210,-5000.0,0.00021456,2]
[395445262,1764691854220,-233.0,0.00021473,120]
[395445264,1764691854231,-389.0,0.00021473,120]
[395445266,1764691854240,-1050.40046118,0.00021476,50]
[395445268,1764691854251,-1864.0,0.00021481,15]
[395445270,1764691854272,-167.0,0.00021491,120]
[395445272,1764691854281,-9210.97839755,0.000215,2]
[395445274,1764691854291,-2855.36156152,0.000215,2]
[395445276,1764691854300,-789.0,0.000215,7]
[395445278,1764691854314,-500.0,0.000215,7]
[395445280,1764691854324,-500.0,0.000215,7]
[395445282,1764691854335,-351.88545273,0.000215,2]
[395445284,1764691854353,-2000.15527268,0.000215,2]
[395445287,1764691854364,-180.0,0.00021512,120]
[395445289,1764691854374,-178.0,0.00021527,120]
[395445290,1764691854386,-172.65013107,0.00021539,18]
[395445292,1764691854396,-1050.40046118,0.00021582,54]
[395445295,1764691854405,-2580.41,0.000216,2]
[395445297,1764691854415,-257.60144184,0.00021632,56]
[395445298,1764691854425,-167.46529792,0.00021635,56]
[395445300,1764691854435,-1300.0,0.00021644,7]
[395445302,1764691854445,-236.12143114,0.00021678,56]
[395445304,1764691854455,-2000.0,0.00021688,7]
[395445306,1764691854465,-1050.40046118,0.00021688,57]
[395445308,1764691854475,-232.09197705,0.00021702,2]
[395445310,1764691854484,-1050.40046118,0.00021794,61]
[395445312,1764691854493,-1050.40046118,0.000219,65]
[395445314,1764691854503,-1605.53,0.000219,2]
[395445316,1764691854513,-9151.30319114,0.000219,2]
[395445318,1764691854523,-9204.53809239,0.000219,2]
[395445320,1764691854533,-236.12143114,0.00021904,63]
[395445322,1764691854543,-343.847925,0.00021918,2]
[395445324,1764691854552,-1494.6795383,0.00021918,7]
[395445326,1764691854562,-500.0,0.00021918,120]
[395445328,1764691854571,-150.0,0.00021918,2]
[395445330,1764691854580,-151.0,0.00021918,2]
[395445332,1764691854591,-151.0,0.00021918,2]
[395445334,1764691854600,-151.0,0.00021918,2]
[395445336,1764691854609,-151.0,0.00021918,2]
[395445338,1764691854618,-157.77213151,0.00021918,2]
[395445340,1764691854627,-151.0,0.00021918,2]
[395445342,1764691854637,-151.01132856,0.00021918,2]
[395445344,1764691854646,-500.0,0.00021918,2]
[395445346,1764691854656,-151.0,0.00021918,2]
[395445348,1764691854666,-151.0,0.00021918,2]
[395445350,1764691854676,-151.0,0.00021918,2]
[395445352,1764691854685,-151.0,0.00021918,2]
[395445354,1764691854695,-151.0,0.00021918,2]
[395445356,1764691854704,-151.0,0.00021918,2]
[395445358,1764691854713,-151.0,0.00021918,2]
[395445360,1764691854722,-151.0,0.00021918,2]
[395445362,1764691854731,-151.0,0.00021918,2]
[395445364,1764691854740,-151.0,0.00021918,2]
[395445366,1764691854749,-151.0,0.00021918,2]
[395445368,1764691854759,-151.0,0.00021918,2]
[395445370,1764691854768,-151.0,0.00021918,2]
[395445372,1764691854777,-151.0,0.00021918,2]
[395445374,1764691854786,-151.0,0.00021918,2]
[395445376,1764691854795,-151.0,0.00021918,2]
[395445378,1764691854804,-151.0,0.00021918,2]
[395445380,1764691854813,-151.0,0.00021918,2]
[395445382,1764691854823,-151.0,0.00021918,2]
[395445384,1764691854832,-151.0,0.00021918,2]
[395445386,1764691854841,-151.0,0.00021918,2]
[395445388,1764691854851,-500.0,0.00021918,2]
[395445390,1764691854862,-151.0,0.00021918,2]
[395445392,1764691854871,-151.0,0.00021918,2]
[395445394,1764691854880,-151.0,0.00021918,2]
[395445395,1764691854889,-151.0,0.00021918,2]
[395445397,1764691854898,-151.0,0.00021918,2]
[395445399,1764691854907,-151.0,0.00021918,2]
[395445401,1764691854917,-151.0,0.00021918,2]
[395445403,1764691854926,-151.0,0.00021918,2]
[395445405,1764691854935,-151.0,0.00021918,2]
[395445407,1764691854944,-151.0,0.00021918,2]
[395445409,1764691854953,-151.0,0.00021918,2]
[395445411,1764691854963,-151.0,0.00021918,2]
[395445413,1764691854972,-151.0,0.00021918,2]
[395445415,1764691854982,-151.0,0.00021918,2]
[395445417,1764691854991,-151.0,0.00021918,2]
[395445419,1764691855000,-151.0,0.00021918,2]
[395445421,1764691855010,-151.0,0.00021918,2]
[395445423,1764691855019,-183.92286576,0.00021918,2]
[395445425,1764691855029,-151.0,0.00021918,2]
[395445427,1764691855039,-151.0,0.00021918,2]
[395445429,1764691855048,-151.0,0.00021918,2]
[395445431,1764691855058,-151.0,0.00021918,2]
[395445433,1764691855067,-151.0,0.00021918,2]
[395445435,1764691855076,-151.0,0.00021918,2]
[395445437,1764691855085,-151.0,0.00021918,2]
[395445439,1764691855095,-151.0,0.00021918,2]
[395445441,1764691855104,-151.0,0.00021918,2]
[395445457,1764691855248,-151.0,0.00021918,2]
[395445459,1764691855258,-151.0,0.00021918,2]
[395445461,1764691855267,-151.0,0.00021918,2]
[395445463,1764691855278,-151.0,0.00021918,2]
[395445465,1764691855288,-151.0,0.00021918,2]
[395445467,1764691855298,-151.0,0.00021918,2]
[395445469,1764691855308,-151.0,0.00021918,2]
[395445471,1764691855317,-151.0,0.00021918,2]
[395445473,1764691855326,-151.0,0.00021918,2]
[395445475,1764691855336,-650.0,0.00021918,2]
[395445477,1764691855352,-151.0,0.00021918,2]
[395445479,1764691855362,-151.0,0.00021918,2]
[395445481,1764691855373,-151.0,0.00021918,2]
[395445483,1764691855388,-151.0,0.00021918,2]
[395445485,1764691855399,-151.0,0.00021918,2]
[395445487,1764691855409,-151.0,0.00021918,2]
[395445489,1764691855418,-151.0,0.00021918,2]
[395445490,1764691855429,-150.0,0.00021918,7]
[395445491,1764691855438,-151.0,0.00021918,2]
[395445492,1764691855447,-151.0,0.00021918,2]
[395445493,1764691855456,-151.0,0.00021918,2]
[395445494,1764691855465,-1660.0,0.00021918,2]
[395445495,1764691855474,-564.86926656,0.0002196,10]
[395445496,1764691855483,-150.5,0.0002197,120]
[395445497,1764691855494,-150.5,0.0002198,120]
[395445498,1764691855503,-150.5,0.0002199,120]
[395445499,1764691855512,-419.08845337,0.00022,2]
[395445500,1764691855522,-183784.5770423,0.00022,2]
[395450771,1764691961539,5000.0,8.062e-05,2]
[395450772,1764691961576,885000.0,8.062e-05,2]
[395450828,1764691983375,250.0,0.0002,30]
[395451341,1764692428329,508.92914827,8.361e-05,2]
[395451411,1764692539757,503.470223,0.000205,29]
[395452335,1764692943395,250.0,0.0002,30]
[395452482,1764693018315,475.3950848,0.000205,29]
[395452515,1764693032020,-239.0,0.00010875,2]
[395452517,1764693032029,-353.75427879,0.00010875,2]
[395452519,1764693032039,-30.34325406,0.00010879,2]
[395452525,1764693032091,-585.50860064,0.00010879,2]
[395452772,1764693038170,-268.61921822,0.00010879,2]
[395452774,1764693038182,-700.52892708,0.00010879,2]
[395452775,1764693038204,-39.16624601,0.00010884,2]
[395452777,1764693038223,-219.61914269,0.00010884,2]
[395452778,1764693038234,-300.0,0.00010938,2]
[395452780,1764693038244,-300.0,0.00010938,2]
[395452781,1764693038254,-1200.0,0.00010938,2]
[395452783,1764693038264,-1139.98826414,0.00010939,2]
[395452784,1764693038278,-60.01173586,0.00010939,2]
[395452786,1764693038287,-1332.71004018,0.0001094,2]
[395452787,1764693038299,-706.64386769,0.0001094,2]
[395452789,1764693038311,-114.64609213,0.0001094,2]
[395452790,1764693038321,-631.0,0.0001094,2]
[395452792,1764693038330,-990.0,0.0001094,2]
[395452793,1764693038341,-414.0,0.0001094,2]
[395452794,1764693038351,-176.59826008,0.00012884,2]
[395452797,1764693038381,-128.76849859,0.00012884,2]
[395452798,1764693038391,-500.0,0.00013697,2]
[395452800,1764693038401,-500.0,0.00013697,2]
[395452801,1764693038410,-413.49547661,0.00013697,2]
[395452803,1764693038420,-500.0,0.00013697,2]
[395452804,1764693038430,-500.0,0.00013697,2]
[395452806,1764693038439,-500.0,0.00013697,2]
[395452807,1764693038449,-500.0,0.00013697,2]
[395452808,1764693038459,-145.40347294,0.00013697,2]
[395452812,1764693038515,-354.59652706,0.00013697,2]
[395452813,1764693038525,-500.0,0.00013697,2]
[395452815,1764693038535,-528.83749629,0.00013697,2]
[395452816,1764693038545,-500.0,0.00013697,2]
[395452818,1764693038555,-609.2110407,0.00013697,2]
[395452819,1764693038565,-476.84175657,0.00013697,2]
[395452821,1764693038576,-288.38238379,0.00013697,2]
[395452822,1764693038587,-211.61761621,0.00013697,2]
[395452824,1764693038597,-500.0,0.00013697,2]
[395452825,1764693038608,-500.0,0.00013697,2]
[395452826,1764693038617,-181.87065604,0.00013697,2]
[395452828,1764693038629,-318.12934396,0.00013697,2]
[395452829,1764693038638,-393.10157488,0.00013697,2]
[395452911,1764693043140,-106.89842512,0.00013697,2]
[395452912,1764693043151,-500.0,0.00013697,2]
[395452913,1764693043160,-500.0,0.00013697,2]
[395452914,1764693043170,-500.0,0.00013697,2]
[395452915,1764693043179,-500.0,0.00013697,2]
[395452916,1764693043188,-500.0,0.00013697,2]
[395452917,1764693043198,-500.0,0.00013697,2]
[395452918,1764693043208,-500.0,0.00013697,2]
[395452919,1764693043219,-295.2552174,0.00013697,2]
[395452920,1764693043229,-500.0,0.00013697,2]
[395452921,1764693043239,-500.0,0.00013697,2]
[395452922,1764693043249,-500.0,0.00013697,2]
[395452923,1764693043258,-500.0,0.00013698,2]
[395452924,1764693043267,-1052.47,0.00013698,2]
[395452925,1764693043277,-500.0,0.00013698,2]
[395452926,1764693043286,-871.25,0.00013698,2]
[395452927,1764693043296,-500.0,0.00013698,2]
[395452928,1764693043305,-1394.26,0.00013698,2]
[395452929,1764693043315,-500.0,0.00013698,2]
[395452930,1764693043325,-500.0,0.00013698,2]
[395452931,1764693043334,-500.0,0.00013698,2]
[395452932,1764693043343,-555.5,0.00013698,2]
[395452933,1764693043354,-500.0,0.00013698,2]
[395452934,1764693043365,-869.98,0.00013698,2]
[395452935,1764693043375,-706.25,0.00013698,2]
[395452936,1764693043384,-1042.57,0.00013698,2]
[395452937,1764693043394,-500.0,0.00013698,2]
[395452938,1764693043404,-1261.62,0.00013698,2]
[395452939,1764693043413,-500.0,0.00013698,2]
[395452940,1764693043423,-500.0,0.00013698,2]
[395452941,1764693043434,-500.0,0.00013698,2]
[395452942,1764693043444,-500.0,0.00013698,2]
[395452944,1764693043454,-867.59,0.00013698,2]
[395452946,1764693043464,-500.0,0.00013698,2]
[395452947,1764693043473,-1065.42,0.00013698,2]
[395452948,1764693043485,-500.0,0.00013698,2]